[Event "Late-Titled-Tuesday-Blitz-March-05-2024"]
[Site "Chess.com"]
[Date "2024.03.05"]
[Round "6"]
[White "Igor_Lysyj"]
[Black "Squirlolz"]
[Result "1/2-1/2"]
[WhiteElo "2837"]
[BlackElo "2602"]
[TimeControl "180+1"]
[EndTime "15:07:24 PST"]
[Termination "Game drawn by stalemate"]

1. d4 {[%clk 0:03:00.2]} 1... Nf6 {[%clk 0:02:59.5]} 2. c4 {[%clk 0:03:00.1]}
2... c5 {[%clk 0:02:59.9]} 3. d5 {[%clk 0:03:00.2]} 3... e6 {[%clk 0:03:00]} 4.
Nc3 {[%clk 0:02:59.9]} 4... exd5 {[%clk 0:03:00.9]} 5. cxd5 {[%clk 0:03:00.3]}
5... d6 {[%clk 0:03:01.8]} 6. Nf3 {[%clk 0:03:00.2]} 6... g6 {[%clk 0:03:01.6]}
7. h3 {[%clk 0:02:59.8]} 7... Bg7 {[%clk 0:03:00.9]} 8. e4 {[%clk 0:03:00]} 8...
O-O {[%clk 0:02:59.2]} 9. Be3 {[%clk 0:03:00.2]} 9... Nbd7 {[%clk 0:02:55.4]}
10. Bd3 {[%clk 0:02:56.1]} 10... Nh5 {[%clk 0:02:55.7]} 11. O-O {[%clk
0:02:55.1]} 11... Ne5 {[%clk 0:02:56]} 12. Be2 {[%clk 0:02:55.1]} 12... Nxf3+
{[%clk 0:02:55.6]} 13. Bxf3 {[%clk 0:02:55.2]} 13... Qh4 {[%clk 0:02:56.3]} 14.
Qd2 {[%clk 0:02:42.4]} 14... h6 {[%clk 0:01:31.5]} 15. Bxh6 {[%clk 0:02:09]}
15... Bxh6 {[%clk 0:01:31.1]} 16. Qxh6 {[%clk 0:02:08.2]} 16... Qf4 {[%clk
0:01:31.8]} 17. Qxf4 {[%clk 0:02:05.6]} 17... Nxf4 {[%clk 0:01:32.7]} 18. h4
{[%clk 0:01:51.7]} 18... Bd7 {[%clk 0:01:32]} 19. a4 {[%clk 0:01:47]} 19... c4
{[%clk 0:01:20.6]} 20. Rab1 {[%clk 0:01:39.9]} 20... Rfc8 {[%clk 0:01:15.2]} 21.
g3 {[%clk 0:01:34.6]} 21... Nd3 {[%clk 0:01:15.2]} 22. Be2 {[%clk 0:01:34.9]}
22... Nc5 {[%clk 0:00:52.3]} 23. Ra1 {[%clk 0:01:34.3]} 23... Nb3 {[%clk
0:00:45.1]} 24. Rad1 {[%clk 0:01:33.7]} 24... a6 {[%clk 0:00:43.4]} 25. f4
{[%clk 0:01:27.6]} 25... b5 {[%clk 0:00:35.8]} 26. e5 {[%clk 0:01:22.9]} 26...
dxe5 {[%clk 0:00:31.7]} 27. fxe5 {[%clk 0:01:16.1]} 27... b4 {[%clk 0:00:28.6]}
28. Ne4 {[%clk 0:01:15.1]} 28... Bxa4 {[%clk 0:00:29.2]} 29. Nd6 {[%clk
0:01:08.6]} 29... c3 {[%clk 0:00:24.1]} 30. Nxc8 {[%clk 0:01:06.6]} 30... Rxc8
{[%clk 0:00:23.9]} 31. bxc3 {[%clk 0:01:03.8]} 31... bxc3 {[%clk 0:00:23.9]} 32.
Bxa6 {[%clk 0:01:00.2]} 32... Rd8 {[%clk 0:00:20.4]} 33. Rd3 {[%clk 0:00:27.3]}
33... c2 {[%clk 0:00:16.2]} 34. Rc3 {[%clk 0:00:24.4]} 34... c1=Q {[%clk
0:00:11.9]} 35. Rcxc1 {[%clk 0:00:24.1]} 35... Nxc1 {[%clk 0:00:12.8]} 36. Rxc1
{[%clk 0:00:24.1]} 36... Rxd5 {[%clk 0:00:13.5]} 37. Re1 {[%clk 0:00:23.8]}
37... Bd7 {[%clk 0:00:09.8]} 38. Re3 {[%clk 0:00:22.8]} 38... Kg7 {[%clk
0:00:09.1]} 39. Be2 {[%clk 0:00:22.2]} 39... Rd4 {[%clk 0:00:09.3]} 40. Kf2
{[%clk 0:00:22.2]} 40... Be6 {[%clk 0:00:09.7]} 41. Ke1 {[%clk 0:00:21.6]} 41...
Kf8 {[%clk 0:00:08.9]} 42. Bd3 {[%clk 0:00:21]} 42... Ke7 {[%clk 0:00:08.9]} 43.
Kd2 {[%clk 0:00:21]} 43... Ra4 {[%clk 0:00:06.8]} 44. Ke1 {[%clk 0:00:20.6]}
44... Ra2 {[%clk 0:00:06.8]} 45. Be2 {[%clk 0:00:19.6]} 45... Bd5 {[%clk
0:00:06.4]} 46. g4 {[%clk 0:00:19.3]} 46... Ra4 {[%clk 0:00:05.2]} 47. h5 {[%clk
0:00:19.3]} 47... gxh5 {[%clk 0:00:06.1]} 48. gxh5 {[%clk 0:00:19.6]} 48... Rh4
{[%clk 0:00:07]} 49. Kf2 {[%clk 0:00:19.1]} 49... Be6 {[%clk 0:00:05.6]} 50. Rg3
{[%clk 0:00:16.4]} 50... Kd7 {[%clk 0:00:04.5]} 51. Rg5 {[%clk 0:00:16.3]} 51...
Kc6 {[%clk 0:00:04.3]} 52. Bf3+ {[%clk 0:00:16.1]} 52... Kc5 {[%clk 0:00:04.6]}
53. Kg3 {[%clk 0:00:16.4]} 53... Rh3+ {[%clk 0:00:03.8]} 54. Kf4 {[%clk
0:00:16.8]} 54... Kd4 {[%clk 0:00:04.7]} 55. Bg4 {[%clk 0:00:16.1]} 55... Rh4
{[%clk 0:00:04.8]} 56. Kg3 {[%clk 0:00:16.1]} 56... Rh1 {[%clk 0:00:02.1]} 57.
Bxe6 {[%clk 0:00:14.9]} 57... fxe6 {[%clk 0:00:03]} 58. Kg2 {[%clk 0:00:14.4]}
58... Rh4 {[%clk 0:00:02.9]} 59. Kf3 {[%clk 0:00:12.3]} 59... Rh1 {[%clk
0:00:01.7]} 60. Ke2 {[%clk 0:00:08.9]} 60... Ke4 {[%clk 0:00:01.6]} 61. Kf2
{[%clk 0:00:05.7]} 61... Kf4 {[%clk 0:00:02.2]} 62. Rg6 {[%clk 0:00:05.4]} 62...
Kxe5 {[%clk 0:00:02.4]} 63. h6 {[%clk 0:00:05.4]} 63... Kf5 {[%clk 0:00:02.5]}
64. Rg8 {[%clk 0:00:05.2]} 64... Rxh6 {[%clk 0:00:02.8]} 65. Rg3 {[%clk
0:00:05]} 65... Rh8 {[%clk 0:00:02.4]} 66. Ke2 {[%clk 0:00:04.8]} 66... Ra8
{[%clk 0:00:03]} 67. Rb3 {[%clk 0:00:04.9]} 67... Ra2+ {[%clk 0:00:03.5]} 68.
Ke1 {[%clk 0:00:04.8]} 68... e5 {[%clk 0:00:04.2]} 69. Rc3 {[%clk 0:00:05.1]}
69... Ke4 {[%clk 0:00:04.7]} 70. Rb3 {[%clk 0:00:05.3]} 70... Rc2 {[%clk
0:00:05.3]} 71. Ra3 {[%clk 0:00:05.2]} 71... Rb2 {[%clk 0:00:05.9]} 72. Rc3
{[%clk 0:00:05.2]} 72... Kf4 {[%clk 0:00:06.6]} 73. Ra3 {[%clk 0:00:04.3]} 73...
e4 {[%clk 0:00:07.3]} 74. Rh3 {[%clk 0:00:04.4]} 74... Ke5 {[%clk 0:00:06.5]}
75. Ra3 {[%clk 0:00:03.6]} 75... Rh2 {[%clk 0:00:06.4]} 76. Rb3 {[%clk
0:00:03.7]} 76... Kd4 {[%clk 0:00:06.8]} 77. Ra3 {[%clk 0:00:03.8]} 77... Rc2
{[%clk 0:00:06.5]} 78. Rb3 {[%clk 0:00:03.9]} 78... Ke5 {[%clk 0:00:06.3]} 79.
Ra3 {[%clk 0:00:04.1]} 79... Rc4 {[%clk 0:00:06.9]} 80. Rb3 {[%clk 0:00:04.4]}
80... Rd4 {[%clk 0:00:07.5]} 81. Ra3 {[%clk 0:00:04.8]} 81... Kf4 {[%clk
0:00:08]} 82. Rh3 {[%clk 0:00:04.6]} 82... Rd3 {[%clk 0:00:07.6]} 83. Rxd3
{[%clk 0:00:04]} 83... exd3 {[%clk 0:00:08.5]} 84. Kd2 {[%clk 0:00:04.1]} 84...
Ke4 {[%clk 0:00:09.4]} 85. Kd1 {[%clk 0:00:04.5]} 85... Kd4 {[%clk 0:00:09.7]}
86. Kd2 {[%clk 0:00:04.9]} 86... Kc4 {[%clk 0:00:10]} 87. Kd1 {[%clk 0:00:05.3]}
87... Kc3 {[%clk 0:00:10.7]} 88. Kc1 {[%clk 0:00:05.7]} 88... Kd4 {[%clk
0:00:11.3]} 89. Kd2 {[%clk 0:00:05.8]} 89... Ke4 {[%clk 0:00:12.1]} 90. Kd1
{[%clk 0:00:06]} 90... Ke3 {[%clk 0:00:13]} 91. Ke1 {[%clk 0:00:06.4]} 91... d2+
{[%clk 0:00:13.6]} 92. Kd1 {[%clk 0:00:06.8]} 92... Kd3 {[%clk 0:00:14.5]}
1/2-1/2

[Event "Late-Titled-Tuesday-Blitz-March-05-2024"]
[Site "Chess.com"]
[Date "2024.03.05"]
[Round "7"]
[White "Bkmzzzzz"]
[Black "1g60-1"]
[Result "1-0"]
[WhiteElo "2416"]
[BlackElo "2282"]
[TimeControl "180+1"]
[EndTime "15:08:41 PST"]
[Termination "Bkmzzzzz won by resignation"]

1. e4 {[%clk 0:03:00.9]} 1... e6 {[%clk 0:03:00.1]} 2. Nf3 {[%clk 0:03:00.8]}
2... c5 {[%clk 0:02:59.7]} 3. d3 {[%clk 0:02:59.8]} 3... Nc6 {[%clk 0:02:59.4]}
4. g3 {[%clk 0:02:58.5]} 4... Nge7 {[%clk 0:02:59.9]} 5. Bg2 {[%clk 0:02:57.7]}
5... g6 {[%clk 0:03:00.4]} 6. Nbd2 {[%clk 0:02:57.6]} 6... Bg7 {[%clk
0:03:00.7]} 7. O-O {[%clk 0:02:58.1]} 7... d5 {[%clk 0:03:01]} 8. Re1 {[%clk
0:02:56.7]} 8... Bd7 {[%clk 0:02:59.8]} 9. e5 {[%clk 0:02:53.5]} 9... Qc7 {[%clk
0:02:58.7]} 10. Qe2 {[%clk 0:02:53.6]} 10... h6 {[%clk 0:02:55.6]} 11. c3 {[%clk
0:02:52.4]} 11... Nxe5 {[%clk 0:02:53.3]} 12. Nxe5 {[%clk 0:02:48.4]} 1-0

[Event "Late-Titled-Tuesday-Blitz-March-05-2024"]
[Site "Chess.com"]
[Date "2024.03.05"]
[Round "7"]
[White "BebeBonito2022"]
[Black "Onthequiet"]
[Result "1-0"]
[WhiteElo "2316"]
[BlackElo "2409"]
[TimeControl "180+1"]
[EndTime "15:09:31 PST"]
[Termination "BebeBonito2022 won by resignation"]

1. d4 {[%clk 0:03:00.9]} 1... Nf6 {[%clk 0:02:58.5]} 2. c4 {[%clk 0:03:01]} 2...
g6 {[%clk 0:02:58.9]} 3. Nc3 {[%clk 0:03:01.3]} 3... Bg7 {[%clk 0:02:59.4]} 4.
e4 {[%clk 0:03:01.6]} 4... d6 {[%clk 0:03:00]} 5. Nf3 {[%clk 0:03:02.1]} 5...
O-O {[%clk 0:03:00.3]} 6. h3 {[%clk 0:03:02.8]} 6... Nfd7 {[%clk 0:02:59.7]} 7.
Bg5 {[%clk 0:02:59.6]} 7... h6 {[%clk 0:02:59.3]} 8. Be3 {[%clk 0:02:59.7]} 8...
c5 {[%clk 0:02:59.2]} 9. d5 {[%clk 0:02:58.8]} 9... Na6 {[%clk 0:02:59]} 10. Be2
{[%clk 0:02:55.2]} 10... Nc7 {[%clk 0:02:58.9]} 11. Qd2 {[%clk 0:02:54.3]} 11...
Kh7 {[%clk 0:02:58.7]} 12. Bd3 {[%clk 0:02:54.7]} 12... a6 {[%clk 0:02:58.2]}
13. g4 {[%clk 0:02:52.3]} 13... e6 {[%clk 0:02:58.3]} 14. h4 {[%clk 0:02:50.5]}
14... exd5 {[%clk 0:02:56.6]} 15. exd5 {[%clk 0:02:50.1]} 15... b5 {[%clk
0:02:55]} 16. h5 {[%clk 0:02:50.1]} 16... bxc4 {[%clk 0:02:54.2]} 17. hxg6+
{[%clk 0:02:46.7]} 17... fxg6 {[%clk 0:02:50.1]} 18. Bxh6 {[%clk 0:02:43]} 18...
Rxf3 {[%clk 0:02:50.1]} 19. Bxg7+ {[%clk 0:02:42.6]} 19... Kxg7 {[%clk 0:02:51]}
20. Qh6+ {[%clk 0:02:42]} 20... Kf7 {[%clk 0:02:50.8]} 21. Qxg6+ {[%clk
0:02:40.2]} 1-0

[Event "Late-Titled-Tuesday-Blitz-March-05-2024"]
[Site "Chess.com"]
[Date "2024.03.05"]
[Round "7"]
[White "Harry_Rakkel"]
[Black "Eliwood44"]
[Result "1-0"]
[WhiteElo "2702"]
[BlackElo "2523"]
[TimeControl "180+1"]
[EndTime "15:09:53 PST"]
[Termination "Harry_Rakkel won by resignation"]

1. e4 {[%clk 0:02:56.7]} 1... e5 {[%clk 0:02:48.1]} 2. Nf3 {[%clk 0:02:55.2]}
2... Nc6 {[%clk 0:02:48.6]} 3. Bc4 {[%clk 0:02:54.7]} 3... Nf6 {[%clk
0:02:48.5]} 4. Ng5 {[%clk 0:02:53.9]} 4... d5 {[%clk 0:02:48.5]} 5. exd5 {[%clk
0:02:53.2]} 5... Na5 {[%clk 0:02:45.1]} 6. Bb5+ {[%clk 0:02:52.8]} 6... Bd7
{[%clk 0:02:45.5]} 7. Qe2 {[%clk 0:02:47.5]} 7... Be7 {[%clk 0:02:42.2]} 8. Nc3
{[%clk 0:02:45.1]} 8... O-O {[%clk 0:02:40.6]} 9. O-O {[%clk 0:02:41.2]} 9...
Bxb5 {[%clk 0:02:36.5]} 10. Qxb5 {[%clk 0:02:37.9]} 10... Nxd5 {[%clk
0:02:29.3]} 11. Nxd5 {[%clk 0:02:19.7]} 11... c6 {[%clk 0:02:11.2]} 12. Nxe7+
{[%clk 0:02:18.4]} 12... Qxe7 {[%clk 0:02:11.7]} 13. Qxa5 {[%clk 0:02:17.3]}
13... Qxg5 {[%clk 0:02:12.1]} 14. d4 {[%clk 0:02:16]} 1-0

[Event "Late-Titled-Tuesday-Blitz-March-05-2024"]
[Site "Chess.com"]
[Date "2024.03.05"]
[Round "7"]
[White "Rutricks"]
[Black "Igor_Lysyj"]
[Result "0-1"]
[WhiteElo "2724"]
[BlackElo "2843"]
[TimeControl "180+1"]
[EndTime "15:10:27 PST"]
[Termination "Igor_Lysyj won by resignation"]

1. Nc3 {[%clk 0:02:56]} 1... Nf6 {[%clk 0:02:58.8]} 2. e3 {[%clk 0:02:55.8]}
2... d5 {[%clk 0:02:58]} 3. d4 {[%clk 0:02:56.4]} 3... e6 {[%clk 0:02:55.7]} 4.
g3 {[%clk 0:02:56.1]} 4... c5 {[%clk 0:02:55.3]} 5. Bg2 {[%clk 0:02:56]} 5...
Nc6 {[%clk 0:02:55.6]} 6. Nge2 {[%clk 0:02:55.9]} 6... b6 {[%clk 0:02:55]} 7.
O-O {[%clk 0:02:55.3]} 7... Bb7 {[%clk 0:02:54.8]} 8. b3 {[%clk 0:02:55.9]} 8...
Be7 {[%clk 0:02:54.5]} 9. Bb2 {[%clk 0:02:56.6]} 9... O-O {[%clk 0:02:54.6]} 10.
Rc1 {[%clk 0:02:57.2]} 10... Rc8 {[%clk 0:02:54.1]} 11. dxc5 {[%clk 0:02:57.2]}
11... Bxc5 {[%clk 0:02:52.1]} 12. Nb5 {[%clk 0:02:56.5]} 12... a6 {[%clk
0:02:49.5]} 13. Nbd4 {[%clk 0:02:57.1]} 13... Be7 {[%clk 0:02:48.4]} 14. c4
{[%clk 0:02:44.1]} 14... dxc4 {[%clk 0:02:06]} 15. Rxc4 {[%clk 0:02:45]} 15...
Nxd4 {[%clk 0:02:03.7]} 16. Rxc8 {[%clk 0:02:03]} 16... Nxe2+ {[%clk 0:01:58.7]}
17. Qxe2 {[%clk 0:02:03.2]} 17... Qxc8 {[%clk 0:01:58.8]} 0-1

[Event "Late-Titled-Tuesday-Blitz-March-05-2024"]
[Site "Chess.com"]
[Date "2024.03.05"]
[Round "7"]
[White "Squirlolz"]
[Black "Beca95"]
[Result "0-1"]
[WhiteElo "2600"]
[BlackElo "2963"]
[TimeControl "180+1"]
[EndTime "15:10:48 PST"]
[Termination "Beca95 won by resignation"]

1. b3 {[%clk 0:03:00.9]} 1... e5 {[%clk 0:02:56.7]} 2. Bb2 {[%clk 0:03:01.8]}
2... Nc6 {[%clk 0:02:56.5]} 3. e3 {[%clk 0:03:02.1]} 3... d5 {[%clk 0:02:49.4]}
4. Bb5 {[%clk 0:03:01.3]} 4... Ne7 {[%clk 0:02:48.9]} 5. Bxe5 {[%clk 0:02:51.7]}
5... a6 {[%clk 0:02:48.1]} 6. Bxc6+ {[%clk 0:02:52.4]} 6... Nxc6 {[%clk
0:02:48.6]} 7. Bg3 {[%clk 0:02:53.3]} 7... h5 {[%clk 0:02:46.3]} 8. h4 {[%clk
0:02:52.2]} 8... d4 {[%clk 0:02:45.7]} 9. d3 {[%clk 0:02:48.3]} 9... Bg4 {[%clk
0:02:44.4]} 10. f3 {[%clk 0:02:46.4]} 10... Bb4+ {[%clk 0:02:41.8]} 11. Kf1
{[%clk 0:02:34.9]} 11... dxe3 {[%clk 0:02:24]} 12. fxg4 {[%clk 0:02:34.8]} 12...
Qf6+ {[%clk 0:02:23.8]} 13. Qf3 {[%clk 0:02:23.5]} 13... Qxa1 {[%clk 0:02:23.2]}
14. Qxe3+ {[%clk 0:02:24]} 14... Kf8 {[%clk 0:02:22.7]} 15. Qc1 {[%clk
0:02:19.4]} 15... Qf6+ {[%clk 0:02:16.1]} 16. Bf4 {[%clk 0:02:15.9]} 16... Re8
{[%clk 0:02:13.9]} 17. g5 {[%clk 0:02:13.5]} 17... Re1+ {[%clk 0:02:10.1]} 18.
Qxe1 {[%clk 0:02:12.1]} 18... Qxf4+ {[%clk 0:02:10]} 19. Qf2 {[%clk 0:02:08.9]}
19... Qc1+ {[%clk 0:02:09.8]} 20. Ke2 {[%clk 0:02:09.3]} 20... Qxc2+ {[%clk
0:02:09.7]} 21. Kf3 {[%clk 0:01:56.3]} 21... Qxd3+ {[%clk 0:02:03.5]} 22. Qe3
{[%clk 0:01:53.2]} 22... Ne5+ {[%clk 0:02:02.6]} 0-1

[Event "Late-Titled-Tuesday-Blitz-March-05-2024"]
[Site "Chess.com"]
[Date "2024.03.05"]
[Round "7"]
[White "KuzubovYuriy"]
[Black "Heydarli77"]
[Result "1-0"]
[WhiteElo "2923"]
[BlackElo "2409"]
[TimeControl "180+1"]
[EndTime "15:11:03 PST"]
[Termination "KuzubovYuriy won by resignation"]

1. d4 {[%clk 0:03:00.9]} 1... d5 {[%clk 0:02:59]} 2. c4 {[%clk 0:03:01.3]} 2...
dxc4 {[%clk 0:02:57.8]} 3. e4 {[%clk 0:03:01.3]} 3... c5 {[%clk 0:02:56.3]} 4.
d5 {[%clk 0:03:00.6]} 4... e6 {[%clk 0:02:55.6]} 5. Bxc4 {[%clk 0:03:00.2]} 5...
Nf6 {[%clk 0:02:53.2]} 6. dxe6 {[%clk 0:02:56]} 6... Qxd1+ {[%clk 0:02:49.8]} 7.
Kxd1 {[%clk 0:02:56.9]} 7... Bxe6 {[%clk 0:02:47.7]} 8. Bxe6 {[%clk 0:02:57]}
8... fxe6 {[%clk 0:02:46.7]} 9. f3 {[%clk 0:02:57.2]} 9... Nc6 {[%clk
0:02:44.2]} 10. Be3 {[%clk 0:02:54.4]} 10... Bd6 {[%clk 0:02:39.7]} 11. Nh3
{[%clk 0:02:52.1]} 11... O-O-O {[%clk 0:02:37.9]} 12. Ke2 {[%clk 0:02:51.2]}
12... Be5 {[%clk 0:02:36.2]} 13. Nc3 {[%clk 0:02:51.1]} 13... Nd4+ {[%clk
0:02:29.9]} 14. Bxd4 {[%clk 0:02:49.6]} 14... cxd4 {[%clk 0:02:21.8]} 15. Nd1
{[%clk 0:02:49.7]} 15... Bc7 {[%clk 0:02:08.8]} 16. Ndf2 {[%clk 0:02:45.7]}
16... e5 {[%clk 0:02:04.2]} 17. Nd3 {[%clk 0:02:45.7]} 17... Rhe8 {[%clk
0:02:01.2]} 18. Nhf2 {[%clk 0:02:45.9]} 18... b6 {[%clk 0:01:58]} 19. Rac1
{[%clk 0:02:46]} 19... Kb7 {[%clk 0:01:58.1]} 20. h4 {[%clk 0:02:45.4]} 20...
Bd6 {[%clk 0:01:52.2]} 21. h5 {[%clk 0:02:37.7]} 21... Nd7 {[%clk 0:01:50]} 22.
Rh3 {[%clk 0:02:31.5]} 22... Rc8 {[%clk 0:01:48.7]} 23. Rxc8 {[%clk 0:02:30]}
23... Rxc8 {[%clk 0:01:49.4]} 24. Rg3 {[%clk 0:02:27.7]} 24... Bf8 {[%clk
0:01:42.4]} 25. Rg5 {[%clk 0:02:26.7]} 25... Re8 {[%clk 0:01:40.5]} 26. Ng4
{[%clk 0:02:23.5]} 26... h6 {[%clk 0:01:35.8]} 27. Rf5 {[%clk 0:02:23.9]} 27...
Bd6 {[%clk 0:01:33.8]} 28. Rf7 {[%clk 0:02:24.2]} 28... Kc6 {[%clk 0:01:31]} 29.
Rxg7 {[%clk 0:02:24.5]} 1-0

[Event "Late-Titled-Tuesday-Blitz-March-05-2024"]
[Site "Chess.com"]
[Date "2024.03.05"]
[Round "7"]
[White "BeanScreen"]
[Black "secretsuperstar7"]
[Result "1-0"]
[WhiteElo "2711"]
[BlackElo "2506"]
[TimeControl "180+1"]
[EndTime "15:11:06 PST"]
[Termination "BeanScreen won by checkmate"]

1. e4 {[%clk 0:03:00.9]} 1... c5 {[%clk 0:02:57.1]} 2. c3 {[%clk 0:03:00.7]}
2... Nf6 {[%clk 0:02:55.1]} 3. e5 {[%clk 0:03:00.7]} 3... Nd5 {[%clk 0:02:55.1]}
4. Nf3 {[%clk 0:03:01.4]} 4... Nc6 {[%clk 0:02:55.3]} 5. Bc4 {[%clk 0:03:00.7]}
5... Nb6 {[%clk 0:02:54.9]} 6. Bb3 {[%clk 0:03:01]} 6... d5 {[%clk 0:02:53.6]}
7. exd6 {[%clk 0:03:00.7]} 7... exd6 {[%clk 0:02:54.1]} 8. O-O {[%clk
0:02:59.8]} 8... Be7 {[%clk 0:02:54.6]} 9. d4 {[%clk 0:02:58.2]} 9... c4 {[%clk
0:02:54.7]} 10. Bc2 {[%clk 0:02:57.8]} 10... d5 {[%clk 0:02:54.1]} 11. h3 {[%clk
0:02:55.8]} 11... O-O {[%clk 0:02:54.1]} 12. Re1 {[%clk 0:02:54.5]} 12... Be6
{[%clk 0:02:52.9]} 13. Nbd2 {[%clk 0:02:52]} 13... Nd7 {[%clk 0:02:48.2]} 14.
Nf1 {[%clk 0:02:51.1]} 14... h6 {[%clk 0:02:47.1]} 15. Ng3 {[%clk 0:02:49.5]}
15... Nf6 {[%clk 0:02:47.2]} 16. Bf4 {[%clk 0:02:43.2]} 16... Qd7 {[%clk
0:02:34.2]} 17. Qd2 {[%clk 0:02:42]} 17... b5 {[%clk 0:02:25.4]} 18. Bxh6 {[%clk
0:02:27.4]} 18... gxh6 {[%clk 0:02:23.8]} 19. Qxh6 {[%clk 0:02:28.3]} 19... Rfe8
{[%clk 0:01:15.8]} 20. Nh5 {[%clk 0:02:25.5]} 20... Nxh5 {[%clk 0:01:04.6]} 21.
Qh7+ {[%clk 0:02:25.1]} 21... Kf8 {[%clk 0:01:04.7]} 22. Qh8# {[%clk 0:02:26]}
1-0

[Event "Late-Titled-Tuesday-Blitz-March-05-2024"]
[Site "Chess.com"]
[Date "2024.03.05"]
[Round "7"]
[White "secretworker2027"]
[Black "KetiTsatsalashvili"]
[Result "1-0"]
[WhiteElo "2676"]
[BlackElo "2485"]
[TimeControl "180+1"]
[EndTime "15:11:13 PST"]
[Termination "secretworker2027 won by checkmate"]

1. e4 {[%clk 0:02:58.2]} 1... c5 {[%clk 0:02:59.7]} 2. Nf3 {[%clk 0:02:57.8]}
2... d6 {[%clk 0:03:00]} 3. d4 {[%clk 0:02:55.9]} 3... cxd4 {[%clk 0:03:00.9]}
4. Nxd4 {[%clk 0:02:56.6]} 4... Nf6 {[%clk 0:03:01.2]} 5. Nc3 {[%clk 0:02:57.3]}
5... Nc6 {[%clk 0:03:01.3]} 6. Nd5 {[%clk 0:02:57.1]} 6... Nxd5 {[%clk
0:02:56.3]} 7. exd5 {[%clk 0:02:54.9]} 7... Qa5+ {[%clk 0:02:49.8]} 8. Bd2
{[%clk 0:02:55]} 8... Qxd5 {[%clk 0:02:49.2]} 9. Nb5 {[%clk 0:02:55.7]} 9...
Qe5+ {[%clk 0:02:41.2]} 10. Be2 {[%clk 0:02:54.6]} 10... d5 {[%clk 0:02:32.3]}
11. Bc3 {[%clk 0:02:54.3]} 11... d4 {[%clk 0:02:20.1]} 12. Nxd4 {[%clk
0:02:52.8]} 12... Nxd4 {[%clk 0:02:20.2]} 13. Bxd4 {[%clk 0:02:53]} 13... Qa5+
{[%clk 0:02:16.3]} 14. Bc3 {[%clk 0:02:45.5]} 14... Qg5 {[%clk 0:02:07.8]} 15.
h4 {[%clk 0:02:22.1]} 15... Qc5 {[%clk 0:02:05.6]} 16. Qd2 {[%clk 0:02:18.3]}
16... a6 {[%clk 0:01:51.9]} 17. O-O-O {[%clk 0:02:16.6]} 17... Qc7 {[%clk
0:01:52]} 18. Ba5 {[%clk 0:01:52.8]} 18... b6 {[%clk 0:01:50.1]} 19. Bf3 {[%clk
0:01:53.2]} 19... Bb7 {[%clk 0:01:40.5]} 20. Bxb6 {[%clk 0:01:51]} 20... Qc8
{[%clk 0:01:32.2]} 21. Bxb7 {[%clk 0:01:50.1]} 21... Qxb7 {[%clk 0:01:33.1]} 22.
Qd8+ {[%clk 0:01:50]} 22... Rxd8 {[%clk 0:01:33.3]} 23. Rxd8# {[%clk 0:01:50.6]}
1-0

[Event "Late-Titled-Tuesday-Blitz-March-05-2024"]
[Site "Chess.com"]
[Date "2024.03.05"]
[Round "7"]
[White "grandcoach"]
[Black "maurovargas01"]
[Result "1-0"]
[WhiteElo "2211"]
[BlackElo "1825"]
[TimeControl "180+1"]
[EndTime "15:11:17 PST"]
[Termination "grandcoach won by checkmate"]

1. e4 {[%clk 0:03:00.9]} 1... d5 {[%clk 0:02:58.9]} 2. exd5 {[%clk 0:03:00.2]}
2... Qxd5 {[%clk 0:02:59.8]} 3. Nc3 {[%clk 0:02:59.4]} 3... Qa5 {[%clk
0:03:00.2]} 4. d4 {[%clk 0:02:58.7]} 4... c6 {[%clk 0:03:00.5]} 5. Bc4 {[%clk
0:02:55.4]} 5... Nf6 {[%clk 0:03:00.1]} 6. Ne2 {[%clk 0:02:52.5]} 6... Bf5
{[%clk 0:02:59.3]} 7. O-O {[%clk 0:02:48.9]} 7... e6 {[%clk 0:02:58.5]} 8. Ng3
{[%clk 0:02:49.5]} 8... Bd6 {[%clk 0:02:58.3]} 9. Nxf5 {[%clk 0:02:48.9]} 9...
exf5 {[%clk 0:02:58.4]} 10. Re1+ {[%clk 0:02:49.4]} 10... Be7 {[%clk 0:02:55.2]}
11. Qe2 {[%clk 0:02:45.5]} 11... Qc7 {[%clk 0:02:54.7]} 12. Bf4 {[%clk
0:02:41.8]} 12... Qd7 {[%clk 0:02:54.2]} 13. Nb5 {[%clk 0:02:35.4]} 13... cxb5
{[%clk 0:02:44.9]} 14. Bxb5 {[%clk 0:02:36.3]} 14... Nc6 {[%clk 0:02:43]} 15.
Rad1 {[%clk 0:02:13]} 15... Nd5 {[%clk 0:02:38.7]} 16. Bg5 {[%clk 0:02:08.4]}
16... f6 {[%clk 0:02:37.6]} 17. c4 {[%clk 0:02:00.1]} 17... Ndb4 {[%clk
0:02:12.1]} 18. d5 {[%clk 0:01:52.2]} 18... fxg5 {[%clk 0:01:55.4]} 19. dxc6
{[%clk 0:01:47.8]} 19... bxc6 {[%clk 0:01:51.1]} 20. Rxd7 {[%clk 0:01:47.6]}
20... O-O {[%clk 0:01:42.2]} 21. Qxe7 {[%clk 0:01:44.5]} 21... cxb5 {[%clk
0:01:37.7]} 22. Qxg7# {[%clk 0:01:44.1]} 1-0

[Event "Late-Titled-Tuesday-Blitz-March-05-2024"]
[Site "Chess.com"]
[Date "2024.03.05"]
[Round "7"]
[White "Alphafischer2019"]
[Black "Practical-Play"]
[Result "1-0"]
[WhiteElo "2733"]
[BlackElo "2583"]
[TimeControl "180+1"]
[EndTime "15:11:25 PST"]
[Termination "Alphafischer2019 won by resignation"]

1. e4 {[%clk 0:03:00.9]} 1... c5 {[%clk 0:02:58.2]} 2. Nf3 {[%clk 0:03:01.4]}
2... a6 {[%clk 0:02:57.6]} 3. g3 {[%clk 0:03:00.1]} 3... b5 {[%clk 0:02:54.8]}
4. Bg2 {[%clk 0:03:00.3]} 4... Bb7 {[%clk 0:02:55.2]} 5. Qe2 {[%clk 0:02:59.5]}
5... d6 {[%clk 0:02:45.4]} 6. a4 {[%clk 0:02:58.8]} 6... b4 {[%clk 0:02:35.4]}
7. O-O {[%clk 0:02:58.6]} 7... g6 {[%clk 0:02:34.7]} 8. c3 {[%clk 0:02:54.1]}
8... a5 {[%clk 0:02:32.6]} 9. Re1 {[%clk 0:02:52.4]} 9... Bg7 {[%clk 0:02:28]}
10. d4 {[%clk 0:02:52.3]} 10... Nf6 {[%clk 0:02:22.3]} 11. e5 {[%clk 0:02:51]}
11... dxe5 {[%clk 0:02:21.7]} 12. dxe5 {[%clk 0:02:51.9]} 12... Nd5 {[%clk
0:02:16.7]} 13. e6 {[%clk 0:02:43.4]} 13... fxe6 {[%clk 0:01:28.7]} 14. Ng5
{[%clk 0:02:36.7]} 14... Bf6 {[%clk 0:01:15.8]} 15. c4 {[%clk 0:02:29.7]} 15...
Nc6 {[%clk 0:00:54.8]} 16. Nxe6 {[%clk 0:02:28.6]} 16... Nd4 {[%clk 0:00:48.7]}
17. Nxd4 {[%clk 0:02:27.6]} 1-0